bitfinex/quotes_SOLUSD_20240827
["timestamp","ask_amount","ask_price","bid_price","bid_amount"]
[1724724071957,20.0,158.44,158.4,6.3129]
[1724724072155,20.0,158.44,158.41,7.57510292]
[1724724072577,20.0,158.45,158.41,7.57510292]
[1724724072759,20.0,158.46,158.41,7.57510292]
[1724724072954,20.0,158.46,158.42,6.3123]
[1724724073684,20.0,158.46,158.43,6.3118]
[1724724073854,20.0,158.46,158.43,15.7797]
[1724724074054,20.0,158.47,158.43,17.04194476]
[1724724074386,6.0532,158.48,158.43,17.04194476]
[1724724074753,6.0532,158.48,158.44,6.3114]
[1724724075361,6.3095,158.49,158.44,6.3114]
[1724724075566,20.0,158.48,158.44,6.3114]
[1724724081191,20.0,158.48,158.44,1.26218665]
[1724724081390,20.0,158.5,158.46,6.3103]
[1724724082498,0.50820453,158.49,158.46,6.3103]
[1724724083218,6.3096,158.49,158.44,6.3112]
[1724724083522,20.0,158.5,158.43,15.7797]
[1724724083523,20.0,158.48,158.45,1.26221601]
[1724724083687,20.0,158.5,158.45,1.26221601]
[1724724084087,26.3094,158.5,158.45,6.3111]
[1724724090696,18.69943066,158.55,158.46,1.26205777]
[1724724090900,22.8182,158.55,158.49,9.79715386]
[1724724091111,6.3067,158.56,158.51,6.3087]
[1724724093326,20.0,158.55,158.51,6.3087]
[1724724096128,6.6002,158.61,158.53,9.79715386]
[1724724096306,6.6002,158.61,158.54,1.26131494]
[1724724097015,16.511,158.63,158.55,26.8255668]
[1724724097242,16.511,158.63,158.58,6.3059]
[1724724097508,6.3031,158.66,158.6,6.3051]
[1724724099023,6.3032,158.65,158.6,6.3051]
[1724724099427,6.3032,158.65,158.59,6.3055]
[1724724100031,20.0,158.64,158.59,6.3055]
[1724724102440,0.50820453,158.63,158.58,22.0706]
[1724724102643,36.10075386,158.64,158.58,22.0706]
[1724724105453,6.304,158.63,158.58,22.0706]
[1724724105666,20.0,158.62,158.58,22.0706]
[1724724107442,9.79715386,158.6,158.54,22.0754]
[1724724107665,26.81410453,158.59,158.54,15.7679]
[1724724107956,20.0,158.59,158.53,6.3078]
[1724724108159,20.0,158.6,158.53,7.56930351]
[1724724108832,6.3055,158.59,158.53,7.56930351]
[1724724109032,20.0,158.58,158.53,7.56930351]
[1724724109485,20.0,158.58,158.53,6.3078]
[1724724109954,20.0,158.58,158.54,6.3073]
[1724724115492,20.0,158.58,158.55,6.307]
[1724724115670,20.0,158.59,158.57,6.3063]
[1724724116186,20.0,158.61,158.57,6.3063]
[1724724116565,26.3048,158.61,158.56,6.3067]
[1724724116761,6.3052,158.6,158.55,6.3071]
[1724724116972,20.0,158.59,158.55,6.3071]
[1724724117483,20.0,158.59,158.55,7.56844347]
[1724724118190,20.0,158.59,158.56,6.3064]
[1724724118483,20.0,158.61,158.57,11.058288]
[1724724118686,20.0,158.62,158.58,1.26103029]
[1724724119668,20.0,158.62,158.58,7.56693029]
[1724724120697,20.0,158.62,158.59,6.3055]
[1724724121187,6.3036,158.64,158.59,6.3055]
[1724724121188,20.0,158.63,158.59,6.3055]
[1724724121697,26.304,158.63,158.58,6.3059]
[1724724122593,0.50820453,158.62,158.58,6.3059]
[1724724122794,26.304,158.63,158.58,6.3059]
[1724724123602,20.0,158.63,158.56,22.0724]
[1724724124688,6.3049,158.61,158.56,22.0724]
[1724724125275,6.3049,158.61,158.57,6.3063]
[1724724125697,6.3044,158.62,158.58,1.2611502]
[1724724126203,20.0,158.61,158.58,1.2611502]
[1724724126702,20.0,158.61,158.57,7.56736545]
[1724724127079,20.0,158.61,158.57,6.3063]
[1724724127496,26.81310453,158.61,158.56,22.0724]
[1724724127895,0.50820453,158.6,158.56,22.0724]
[1724724129402,26.3049,158.61,158.56,22.0724]
[1724724129603,26.3049,158.61,158.57,6.3063]
[1724724129933,20.0,158.61,158.57,6.3063]
[1724724131782,20.0,158.61,158.58,1.26114822]
[1724724132286,20.0,158.61,158.57,7.56736478]
[1724724132892,20.0,158.61,158.58,6.3058]
[1724724133092,20.0,158.62,158.58,6.3058]
[1724724133797,26.3045,158.62,158.56,31.86955386]
[1724724134006,6.3052,158.6,158.56,15.766]
[1724724134184,6.81300453,158.61,158.56,15.766]
[1724724134382,0.50820453,158.6,158.56,22.0727]
[1724724135811,6.81300453,158.61,158.56,22.0727]
[1724724136108,0.50820453,158.6,158.56,22.0727]
[1724724136309,20.50820453,158.6,158.56,22.0727]
[1724724136491,20.0,158.6,158.56,22.0727]
[1724724137100,26.3052,158.6,158.56,15.766]
[1724724137410,0.50820453,158.59,158.56,15.766]
[1724724139023,6.81400453,158.59,158.54,6.3071]
[1724724139187,6.3071,158.56,158.52,15.729]
[1724724139390,20.50820453,158.55,158.5,22.0818]
[1724724139717,0.50820453,158.54,158.51,6.3086]
[1724724140029,0.50820453,158.54,158.48,15.8248]
[1724724140205,6.3084,158.52,158.47,6.3609]
[1724724140515,6.3079,158.53,158.47,7.57214143]
[1724724140816,26.3079,158.53,158.47,7.57214143]
[1724724141525,26.3079,158.53,158.48,6.3098]
[1724724146015,17.407987,158.59,158.52,9.79715386]
[1724724146016,15.2746,158.59,158.52,9.79715386]
[1724724146188,6.3145,158.61,158.55,9.79715386]
[1724724146393,6.3055,158.6,158.55,9.79715386]
[1724724148204,20.0,158.59,158.55,9.79715386]
[1724724148823,20.0,158.59,158.57,6.306]
[1724724149034,26.3045,158.62,158.57,6.306]
[1724724149405,20.0,158.62,158.57,6.306]
[1724724150135,20.0,158.62,158.56,15.7665]
[1724724150136,0.50820453,158.63,158.58,6.3058]
[1724724150332,6.3037,158.64,158.58,7.5669566]
[1724724151504,20.0,158.63,158.58,7.5669566]
[1724724154605,26.304,158.63,158.58,7.5669566]
[1724724156906,26.304,158.63,158.58,6.3058]
[1724724158231,26.304,158.63,158.58,7.56684708]
[1724724162344,26.304,158.63,158.58,1.26104708]
[1724724162646,26.304,158.63,158.58,1.26103961]
[1724724163524,26.304,158.63,158.58,7.56673961]
[1724724166034,20.0,158.63,158.61,9.79715386]
[1724724166244,6.3028,158.66,158.61,16.10155386]
[1724724166425,20.0,158.65,158.61,16.10155386]
[1724724172653,20.0,158.65,158.61,9.79715386]
[1724724172847,6.3008,158.71,158.63,9.79715386]
[1724724173088,6.3004,158.72,158.67,6.3023]
[1724724173344,6.3,158.73,158.68,16.09895386]
[1724724174425,6.3,158.73,158.67,7.56261461]
[1724724174624,20.0,158.72,158.67,7.56261461]
[1724724175847,20.0,158.72,158.68,16.09905386]
[1724724176735,20.0,158.72,158.68,9.79715386]
[1724724176962,26.3005,158.72,158.66,16.09955386]
[1724724177155,26.3005,158.72,158.67,6.3023]
[1724724178572,20.0,158.72,158.67,7.5625523]
[1724724179073,20.0,158.72,158.67,6.3023]
[1724724179281,20.0,158.72,158.68,1.26025247]
[1724724179650,20.0,158.72,158.69,6.3015]
[1724724179836,26.2996,158.74,158.7,9.79715386]
[1724724180244,26.2996,158.74,158.7,11.05728089]
[1724724182488,26.2996,158.74,158.7,1.26012703]
[1724724182645,26.2996,158.74,158.69,6.3015]
[1724724183454,26.2996,158.74,158.7,1.26009307]
[1724724184968,29.74482772,158.78,158.72,16.09745386]
[1724724184969,7.1198956,158.78,158.72,16.09745386]
[1724724185147,6.2986,158.77,158.72,16.09745386]
[1724724186073,6.2988,158.76,158.71,6.3007]
[1724724186376,20.0,158.75,158.71,6.3007]
[1724724187489,20.0,158.75,158.71,7.56068904]
[1724724189679,20.0,158.75,158.71,6.3007]
[1724724191166,20.0,158.75,158.72,6.3003]
[1724724191460,20.0,158.76,158.74,6.2994]
[1724724191678,20.8215956,158.78,158.74,17.35627348]
[1724724193186,20.8215956,158.78,158.75,6.2991]
[1724724193481,0.8215956,158.78,158.75,6.2991]
[1724724193690,0.8215956,158.78,158.76,1.25961691]
[1724724195265,0.8215956,158.78,158.75,6.2991]
[1724724195685,0.8215956,158.78,158.76,1.25959342]
[1724724196568,0.8215956,158.78,158.75,6.2991]
[1724724197559,0.8215956,158.78,158.76,1.25959358]
[1724724198281,0.8215956,158.78,158.74,25.61695386]
[1724724202289,0.8215956,158.78,158.75,1.25968063]
[1724724205609,0.8215956,158.78,158.75,7.55869235]
[1724724205764,0.8215956,158.78,158.74,15.8198]
[1724724205965,7.1195956,158.78,158.74,15.8198]
[1724724206890,0.8215956,158.78,158.74,22.1193]
[1724724207284,20.8215956,158.78,158.74,22.1193]
[1724724209513,20.8215956,158.78,158.75,7.55877733]
[1724724209682,0.8215956,158.78,158.75,7.55877733]
[1724724210783,0.8215956,158.78,158.77,6.2984]
[1724724210991,0.8215956,158.78,158.77,52.55771965]
[1724724212303,6.5661,158.9,158.77,52.55771965]
[1724724212304,0.50820453,158.89,158.82,6.2964]
[1724724212808,0.50820453,158.89,158.81,16.09395386]
[1724724213025,10.30535839,158.89,158.77,60.1105]
[1724724213313,6.2958,158.84,158.79,16.09455386]
[1724724213891,6.2958,158.84,158.8,1.25928816]
[1724724215028,6.2952,158.86,158.81,9.79715386]
[1724724215317,20.0,158.85,158.82,1.25909702]
[1724724216466,20.0,158.85,158.81,9.79715386]
[1724724218815,20.0,158.85,158.82,1.25909729]
[1724724220422,6.2957,158.84,158.8,6.2972]
[1724724221429,6.2957,158.84,158.79,31.83835386]
[1724724221604,6.2957,158.84,158.8,1.25927146]
[1724724226624,26.2953,158.85,158.8,7.55637146]
[1724724228232,6.2956,158.84,158.8,7.55637146]
[1724724228421,6.2956,158.84,158.8,6.2971]
[1724724229635,6.2956,158.84,158.81,1.25920041]
[1724724230117,26.2953,158.85,158.81,1.25920041]
[1724724231036,20.0,158.85,158.81,17.35305427]
[1724724232740,20.0,158.85,158.81,26.79765427]
[1724724232946,20.0,158.87,158.83,6.2959]
[1724724233246,20.0,158.87,158.84,1.25893838]
[1724724233627,20.0,158.87,158.83,6.2959]
[1724724237038,20.0,158.87,158.84,7.55448555]
[1724724237233,15.6629,158.92,158.85,25.53455386]
[1724724237426,7.3876956,158.94,158.87,9.79715386]
[1724724237628,7.3876956,158.94,158.88,1.25861117]
[1724724238238,6.292,158.93,158.88,7.55261117]
[1724724238446,6.292,158.93,158.88,6.294]
[1724724239826,20.0,158.92,158.88,6.294]
[1724724240157,26.2925,158.92,158.87,9.79715386]
[1724724240453,26.2925,158.92,158.86,16.09155386]
[1724724240751,6.2929,158.91,158.86,16.09155386]
[1724724242647,6.2929,158.91,158.88,9.79715386]
[1724724243053,6.2929,158.91,158.86,6.2944]
[1724724243227,6.2929,158.91,158.87,9.79715386]
[1724724243624,6.2929,158.91,158.85,15.7374]
[1724724243625,6.2938,158.89,158.85,15.7374]
[1724724243829,20.0,158.9,158.83,9.79715386]
[1724724244166,10.30535839,158.89,158.82,15.7409]
[1724724244451,6.2948,158.86,158.81,9.79715386]
[1724724245526,6.2945,158.87,158.82,1.25908447]
[1724724247139,6.2945,158.87,158.83,1.25908403]
[1724724247461,6.294,158.88,158.82,6.2963]
[1724724247649,6.294,158.88,158.8,15.7422]
[1724724247650,20.0,158.87,158.83,17.35198703]
[1724724248172,20.0,158.87,158.83,16.09305386]
[1724724248552,20.0,158.87,158.83,6.2959]
[1724724248862,6.2937,158.89,158.84,1.25894263]
[1724724249025,15.9291,158.9,158.84,1.25894263]
[1724724249223,20.0,158.89,158.85,6.2952]
[1724724249950,20.0,158.89,158.86,7.55374296]
[1724724250126,20.0,158.9,158.86,7.55374296]
[1724724250658,16.7506956,158.94,158.87,6.2943]
[1724724250855,16.7506956,158.94,158.88,1.25864307]
[1724724251353,16.7506956,158.94,158.87,6.2943]
[1724724251655,27.05605399,158.94,158.86,6.2946]
[1724724252265,20.0,158.93,158.86,6.2946]
[1724724252577,6.2933,158.9,158.84,38.5943]
[1724724252765,6.2933,158.9,158.85,6.2951]
[1724724253063,6.2941,158.88,158.84,15.7382]
[1724724253272,9.79715386,158.9,158.81,15.742]
[1724724253442,9.79715386,158.9,158.8,15.3089]
[1724724253443,6.2955,158.85,158.8,21.606]
[1724724254459,6.2949,158.86,158.81,6.2968]
[1724724254773,12.6165,158.9,158.84,6.2956]
[1724724254960,6.2936,158.9,158.85,1.25887291]
[1724724255167,20.0,158.89,158.85,1.25887291]
[1724724255638,26.2938,158.89,158.85,1.25887291]
[1724724257537,20.0,158.89,158.84,9.79715386]
[1724724257740,6.2937,158.89,158.84,15.7387]
[1724724257964,20.0,158.88,158.84,15.7387]
[1724724258677,20.0,158.88,158.84,16.9976176]
[1724724260267,6.2932,158.9,158.85,6.2952]
[1724724260667,10.30535839,158.89,158.84,15.7387]
[1724724260843,30.30535839,158.89,158.84,15.7387]
[1724724261471,30.30535839,158.89,158.81,15.7417]
[1724724261643,6.2953,158.85,158.8,6.2971]
[1724724261875,6.2948,158.86,158.81,6.2968]
[1724724262046,20.0,158.85,158.81,6.2968]
[1724724262954,26.2952,158.85,158.81,6.2968]
[1724724263580,26.2952,158.85,158.8,6.2971]
[1724724263946,26.2953,158.85,158.8,6.2972]
[1724724264949,26.2953,158.85,158.81,6.2968]
[1724724265151,20.0,158.85,158.81,6.2968]
[1724724266475,20.0,158.85,158.81,7.55603428]
[1724724267665,26.2952,158.85,158.81,7.55603428]
[1724724267880,26.2952,158.85,158.81,6.2968]
[1724724268376,26.2952,158.85,158.8,6.2971]
[1724724270552,0.50820453,158.84,158.8,6.2971]
[1724724270981,6.80380453,158.84,158.79,6.2975]
[1724724276285,6.2965,158.82,158.76,21.6073]
[1724724276486,6.2965,158.82,158.76,6.2984]
[1724724276487,0.50820453,158.81,158.76,6.2984]
[1724724276688,20.50820453,158.81,158.76,6.2984]
[1724724276986,6.2976,158.79,158.75,15.7477]
[1724724277281,6.80580453,158.79,158.75,15.7477]
[1724724277490,6.2976,158.79,158.75,15.7477]
[1724724277991,6.80540453,158.8,158.75,15.7477]
[1724724278687,0.50820453,158.79,158.75,22.0468]
[1724724278858,6.2972,158.8,158.75,22.0468]
[1724724279571,6.80600453,158.79,158.75,15.7477]
[1724724279881,26.298,158.78,158.73,6.2997]
[1724724280459,20.0,158.78,158.73,6.2997]
[1724724282190,20.50820453,158.78,158.73,6.2997]
[1724724282574,26.80620453,158.78,158.73,6.2997]
[1724724283487,26.298,158.78,158.73,6.2997]
[1724724283889,26.80620453,158.78,158.73,6.2997]
[1724724284088,26.298,158.78,158.73,6.2997]
[1724724285681,20.0,158.78,158.74,7.55946071]
[1724724285877,20.0,158.78,158.74,6.2996]
[1724724286100,20.0,158.78,158.74,7.55938137]
[1724724286983,20.0,158.78,158.74,6.2996]
[1724724287504,20.50820453,158.78,158.74,6.2996]
[1724724288769,20.0,158.78,158.74,6.2996]
[1724724291989,0.50820453,158.77,158.74,6.2996]
[1724724292503,20.0,158.78,158.74,6.2996]
[1724724292806,20.50820453,158.78,158.74,6.2996]
[1724724293104,15.0694,158.81,158.78,6.2979]
[1724724293404,15.0694,158.81,158.77,22.0443]
[1724724294581,20.0,158.8,158.77,22.0443]
[1724724295508,20.0,158.8,158.78,6.2979]
[1724724295691,20.0,158.82,158.78,6.2979]
[1724724296714,20.0,158.82,158.8,6.2971]
[1724724297702,20.0,158.82,158.79,6.2975]
[1724724301205,20.50820453,158.82,158.78,6.2979]
[1724724301383,20.0,158.82,158.78,6.2979]
[1724724302484,20.0,158.82,158.79,6.2975]
[1724724302686,20.0,158.82,158.8,6.2971]
[1724724303107,20.0,158.82,158.79,15.7432]
[1724724303309,20.0,158.82,158.79,22.0407]
[1724724303516,20.0,158.82,158.79,15.7432]
[1724724303893,20.0,158.82,158.77,6.298]
[1724724305219,29.79715386,158.82,158.74,16.0331]
[1724724305519,29.79715386,158.82,158.73,15.7499]
[1724724305520,6.80540453,158.81,158.75,6.2988]
[1724724305686,20.0,158.8,158.75,6.2988]
[1724724305890,36.09455386,158.8,158.75,6.2988]
[1724724306284,0.50820453,158.79,158.73,15.7499]
[1724724306490,0.50820453,158.79,158.73,22.0498]
[1724724306491,16.09545386,158.78,158.73,22.0498]
[1724724306740,20.50820453,158.77,158.73,15.7499]
[1724724306890,20.0,158.77,158.73,15.7499]
[1724724308492,20.0,158.77,158.73,22.0498]
[1724724308696,26.2984,158.77,158.73,15.7499]
[1724724308891,6.2996,158.74,158.69,6.3014]
[1724724309210,6.2996,158.74,158.66,56.69555386]
[1724724309513,16.60445839,158.76,158.67,1.57798718]
[1724724309696,20.0,158.75,158.68,2.83805759]
[1724724309884,20.0,158.75,158.69,1.57798718]
[1724724310092,20.0,158.75,158.7,1.26006952]
[1724724310316,20.0,158.75,158.68,1.2600695]
[1724724310496,20.0,158.75,158.69,1.57791204]
[1724724310697,20.0,158.75,158.7,7.56117223]
[1724724311500,0.50820453,158.74,158.7,6.3011]
[1724724311998,6.3001,158.73,158.68,6.3018]
[1724724312205,20.50820453,158.72,158.68,6.3018]
[1724724312400,30.30535839,158.72,158.67,6.3023]
[1724724314306,6.5849,158.71,158.65,22.06]
[1724724314512,20.50820453,158.7,158.65,22.06]
[1724724314711,20.0,158.7,158.66,6.3027]
[1724724315292,20.0,158.7,158.66,7.56312355]
[1724724315893,20.0,158.7,158.66,6.3027]
[1724724317302,20.50820453,158.7,158.66,6.3027]
[1724724317805,20.0,158.7,158.66,6.3027]
[1724724320914,0.50820453,158.69,158.66,6.3027]
[1724724322325,29.79715386,158.7,158.66,6.3027]
[1724724323611,20.0,158.7,158.66,6.3027]
[1724724324726,20.0,158.7,158.67,1.26044051]
[1724724324936,20.0,158.73,158.67,11.05759437]
[1724724325118,20.0,158.73,158.67,9.79715386]
[1724724325716,26.3,158.73,158.68,6.3019]
[1724724326531,9.79715386,158.72,158.65,15.7572]
[1724724326730,27.09310453,158.71,158.65,15.7572]
[1724724326916,16.60655839,158.7,158.65,15.7572]
[1724724327119,6.3016,158.69,158.65,15.7572]
[1724724327308,0.50820453,158.68,158.65,15.7572]
[1724724328417,0.50820453,158.68,158.65,22.0603]
[1724724329425,0.50820453,158.68,158.65,15.7572]
[1724724329625,6.3028,158.66,158.62,15.7606]
[1724724329945,16.09995386,158.66,158.62,15.7606]
[1724724330125,6.3028,158.66,158.62,15.7606]
[1724724330508,16.09955386,158.67,158.62,15.7606]
[1724724330728,20.0,158.66,158.62,15.7606]
[1724724332115,36.57674843,158.66,158.6,6.3051]
[1724724332348,6.3035,158.64,158.59,6.3054]
[1724724332514,0.50820453,158.63,158.59,6.3054]
[1724724332718,16.60885839,158.64,158.59,6.3054]
[1724724332960,16.10065386,158.64,158.59,6.3054]
[1724724334026,26.21979004,158.66,158.6,6.3048]
[1724724334027,6.3032,158.65,158.6,6.3048]
[1724724334234,20.0,158.64,158.61,1.26091752]
[1724724334821,20.0,158.65,158.61,1.26091752]
[1724724335043,20.0,158.65,158.6,25.55915386]
[1724724335645,20.0,158.65,158.62,6.3043]
[1724724344956,0.50820453,158.68,158.63,15.7597]
[1724724345162,15.9284,158.69,158.63,17.02048736]
[1724724346436,20.0,158.68,158.63,17.02048736]
[1724724346636,20.0,158.68,158.65,6.3031]
[1724724347443,20.0,158.68,158.66,6.3027]
[1724724347646,20.0,158.7,158.66,6.3027]
[1724724349662,20.0,158.7,158.67,6.3023]
[1724724349873,22.1797,158.74,158.66,9.79715386]
[1724724350040,15.9284,158.74,158.69,6.3012]
[1724724350542,0.50820453,158.73,158.69,6.3012]
[1724724350869,16.60565839,158.73,158.68,15.7549]
[1724724351238,20.0,158.72,158.68,15.7549]
[1724724351653,20.0,158.72,158.66,6.3027]
[1724724351869,0.50820453,158.71,158.65,15.7578]
[1724724352040,20.0,158.72,158.67,6.302]
[1724724354070,20.0,158.72,158.68,6.3017]
[1724724354442,20.0,158.72,158.69,6.3015]
[1724724354644,20.0,158.73,158.69,6.3015]
[1724724363780,26.3,158.73,158.68,6.3019]
[1724724364073,26.80820453,158.73,158.68,6.3019]
[1724724366081,26.3,158.73,158.68,6.3019]
[1724724366285,20.0,158.73,158.72,6.3004]
[1724724366588,28.3254,158.78,158.73,6.2999]
[1724724367885,20.0,158.77,158.73,6.2999]
[1724724370576,20.0,158.77,158.72,6.3003]
[1724724371085,20.0,158.77,158.72,7.56024225]
[1724724371689,20.0,158.77,158.73,6.3]
[1724724374281,28.36978222,158.82,158.76,6.2986]
[1724724374484,6.2961,158.83,158.78,6.2979]
[1724724376202,20.0,158.82,158.78,6.2979]
[1724724376876,0.50820453,158.81,158.76,15.746]
[1724724377063,6.80510453,158.81,158.76,15.746]
[1724724377268,20.0,158.8,158.76,15.746]
[1724724379499,20.0,158.8,158.76,22.0447]
[1724724381691,20.0,158.8,158.76,15.746]
[1724724381692,26.2974,158.8,158.76,15.746]
[1724724382198,20.0,158.8,158.76,22.0446]
[1724724382397,20.0,158.81,158.76,22.0446]
[1724724383799,6.2968,158.81,158.76,22.0446]
[1724724383991,20.0,158.8,158.76,22.0446]
[1724724388099,20.0,158.8,158.77,6.2983]
[1724724388280,20.0,158.81,158.77,6.2983]
[1724724388705,44.65841207,158.86,158.76,15.746]
[1724724389005,6.2955,158.85,158.8,6.2971]
[1724724390311,26.2956,158.84,158.79,6.2975]
[1724724390815,6.2964,158.82,158.78,15.7443]
[1724724391010,20.50820453,158.81,158.78,15.7443]
[1724724391188,20.50820453,158.81,158.78,22.0423]
[1724724391393,20.0,158.81,158.78,22.0423]
[1724724391695,20.0,158.82,158.78,22.0423]
[1724724393281,20.0,158.82,158.79,1.25952486]
[1724724393695,20.0,158.85,158.79,1.25952486]
[1724724394093,26.2953,158.85,158.8,6.2968]
[1724724395211,20.0,158.85,158.8,22.0391]
[1724724395385,20.0,158.85,158.8,23.29839606]
[1724724396998,23.75965771,158.88,158.8,17.00159606]
[1724724397306,6.2948,158.86,158.82,6.2964]
[1724724397511,6.2948,158.86,158.81,6.2968]
[1724724398175,20.0,158.85,158.81,6.2968]
[1724724399913,20.0,158.85,158.81,11.05636732]
[1724724400205,26.80260453,158.87,158.8,15.7423]
[1724724400508,26.2944,158.87,158.81,1.25916465]
[1724724401724,26.2944,158.87,158.82,6.2963]
[1724724402716,26.80260453,158.87,158.81,6.2967]
[1724724403019,26.2944,158.87,158.81,6.2967]
[1724724403196,26.2944,158.87,158.81,7.55588394]
[1724724412010,26.2944,158.87,158.82,6.2963]
[1724724414233,6.80300453,158.86,158.81,6.2968]
[1724724414407,20.50820453,158.85,158.81,6.2968]
[1724724414719,20.0,158.85,158.81,6.2968]
[1724724419932,20.0,158.85,158.81,7.55598632]
[1724724420135,20.0,158.85,158.82,6.2963]
[1724724420305,20.0,158.86,158.82,6.2963]
[1724724422332,26.2949,158.86,158.8,22.0391]
[1724724422637,0.50820453,158.85,158.8,22.0391]
[1724724422960,6.80350453,158.85,158.8,22.0391]
[1724724423842,9.79715386,158.84,158.78,6.2976]
[1724724424140,6.2964,158.82,158.77,22.044]
[1724724424333,0.50820453,158.81,158.77,22.044]
[1724724425037,0.50820453,158.81,158.73,15.3494]
[1724724425340,6.2976,158.79,158.74,6.2995]
[1724724425505,0.50820453,158.78,158.74,6.2995]
[1724724425829,6.80580453,158.79,158.74,6.2995]
[1724724426415,6.80580453,158.79,158.73,22.0489]
[1724724426615,6.80580453,158.79,158.73,15.749]
[1724724427524,6.2976,158.79,158.73,15.749]
[1724724427831,16.09435386,158.8,158.74,6.2996]
[1724724428041,20.0,158.79,158.77,6.2983]
[1724724428371,20.0,158.81,158.77,9.79715386]
[1724724428511,22.6475,158.85,158.78,1.25941231]
[1724724428707,16.0926,158.85,158.81,6.2966]
[1724724428920,6.2951,158.86,158.81,6.2966]
[1724724430435,20.0,158.85,158.81,6.2966]
[1724724430838,20.0,158.85,158.8,7.5563097]
[1724724431942,20.0,158.85,158.8,6.2971]
[1724724433251,20.0,158.85,158.81,1.25917525]
[1724724433418,20.0,158.85,158.81,7.55587525]
[1724724434129,20.0,158.85,158.81,16.09385386]
[1724724434334,17.18290211,158.88,158.81,16.09385386]
[1724724434335,17.18290211,158.88,158.86,6.2948]
[1724724434542,17.18290211,158.88,158.87,1.25879412]
[1724724434748,17.18290211,158.88,158.87,11.05594798]
[1724724435052,17.18290211,158.88,158.87,16.09155386]
[1724724436237,17.18290211,158.88,158.87,6.2944]
[1724724448760,17.18290211,158.88,158.86,1.25880398]
[1724724448970,17.18290211,158.88,158.85,31.82925386]
[1724724448971,17.18290211,158.88,158.85,15.7372]
[1724724449542,17.18290211,158.88,158.85,22.0324]
[1724724452470,17.18290211,158.88,158.86,1.25886492]
[1724724452850,17.18290211,158.88,158.87,6.2944]
[1724724454371,17.18290211,158.88,158.87,16.09155386]
[1724724455985,17.18290211,158.88,158.87,6.2944]
[1724724466756,17.18290211,158.88,158.87,51.2944]
[1724724468189,17.18290211,158.88,158.87,71.2944]
[1724724469588,17.18290211,158.88,158.87,51.2944]
[1724724469780,17.18290211,158.88,158.87,71.2944]
[1724724470284,0.8215956,158.94,158.93,6.292]
[1724724470494,0.8215956,158.94,158.93,7.55022256]
[1724724471085,0.8215956,158.94,158.93,52.55022256]
[1724724473677,0.8215956,158.94,158.93,51.292]
[1724724474202,0.8215956,158.94,158.93,52.55004518]
[1724724475995,0.8215956,158.94,158.93,6.292]
[1724724477801,0.8215956,158.94,158.93,7.55015612]
[1724724478093,0.8215956,158.94,158.93,6.292]
[1724724479092,0.8215956,158.94,158.93,7.55019468]
[1724724481293,0.8215956,158.94,158.92,15.731]
[1724724481691,0.8215956,158.94,158.89,15.7341]
[1724724481891,0.8215956,158.94,158.9,1.25845731]
[1724724482310,0.8215956,158.94,158.9,7.55135731]
[1724724482895,0.8215956,158.94,158.9,6.2929]
[1724724484987,7.1131956,158.94,158.89,22.0276]
[1724724485193,36.78305839,158.93,158.86,15.737]
[1724724485386,0.50820453,158.92,158.86,15.737]
[1724724485599,20.0,158.93,158.88,15.7342]
[1724724485805,20.0,158.93,158.89,1.25842925]
[1724724486601,20.0,158.93,158.9,6.2931]
[1724724486908,20.0,158.93,158.91,1.25842753]
[1724724488095,20.8215956,158.94,158.91,1.25842753]
[1724724488590,0.8215956,158.94,158.91,11.05558139]
[1724724489092,0.8215956,158.94,158.9,15.7323]
[1724724489680,0.8215956,158.94,158.92,6.2924]